fUSD/lending_fUSD_20251013
["ID","MTS","AMOUNT","RATE_DAILY","PERIOD"]
[391090204,1760320248953,-150.0,0.00023396,4]
[391090205,1760320248962,-2000.0,0.000234,2]
[391090206,1760320248971,-150.0,0.00023404,4]
[391090207,1760320248981,-150.0,0.00023408,4]
[391090208,1760320248990,-150.0,0.0002341,4]
[391090209,1760320249001,-150.0,0.00023413,4]
[391090210,1760320249013,-185.87887338,0.00023419,4]
[391090211,1760320249023,-253.69222494,0.00023419,4]
[391090212,1760320249033,-317.45564591,0.00023419,4]
[391090213,1760320249043,-172.96055888,0.00023419,4]
[391090214,1760320249052,-161.2482664,0.00023419,4]
[391090215,1760320249062,-188.08181534,0.00023419,4]
[391090216,1760320249071,-150.0,0.00023426,4]
[391090217,1760320249080,-150.0,0.00023426,4]
[391090218,1760320249089,-150.0,0.00023438,4]
[391090219,1760320249098,-185.87887338,0.00023444,4]
[391090220,1760320249107,-253.69222494,0.00023444,4]
[391090221,1760320249116,-317.45564591,0.00023444,4]
[391090222,1760320249126,-172.96055888,0.00023444,4]
[391090223,1760320249135,-161.2482664,0.00023444,4]
[391090224,1760320249144,-188.08181534,0.00023444,4]
[391090225,1760320249153,-635.98458369,0.00023455,2]
[391090226,1760320249161,-150.0,0.00023455,4]
[391090227,1760320249170,-150.0,0.00023455,4]
[391090228,1760320249179,-150.0,0.00023462,4]
[391090229,1760320249188,-150.0,0.00023468,4]
[391090230,1760320249197,-185.87887338,0.0002347,4]
[391090231,1760320249206,-253.69222494,0.0002347,4]
[391090232,1760320249215,-317.45564591,0.0002347,4]
[391090233,1760320249225,-172.96055888,0.0002347,4]
[391090234,1760320249234,-161.2482664,0.0002347,4]
[391090235,1760320249243,-188.08181534,0.0002347,4]
[391090236,1760320249252,-150.0,0.00023473,4]
[391090237,1760320249261,-150.0,0.00023477,4]
[391090238,1760320249270,-150.0,0.00023477,4]
[391090239,1760320249279,-150.0,0.00023485,4]
[391090240,1760320249290,-185.87887338,0.00023495,4]
[391090241,1760320249300,-253.69222494,0.00023495,4]
[391090242,1760320249309,-317.45564591,0.00023495,4]
[391090243,1760320249318,-172.96055888,0.00023495,4]
[391090244,1760320249328,-161.2482664,0.00023495,4]
[391090245,1760320249348,-188.08181534,0.00023495,4]
[391090246,1760320249367,-150.0,0.00023498,4]
[391090247,1760320249377,-848.0,0.000235,5]
[391090248,1760320249386,-150.0,0.00023506,4]
[391090249,1760320249395,-150.0,0.00023511,4]
[391090250,1760320249404,-150.0,0.00023514,4]
[391090251,1760320249413,-185.87887338,0.0002352,4]
[391090252,1760320249423,-253.69222494,0.0002352,4]
[391090253,1760320249431,-317.45564591,0.0002352,4]
[391090254,1760320249440,-172.96055888,0.0002352,4]
[391090255,1760320249449,-161.2482664,0.0002352,4]
[391090256,1760320249458,-150.0,0.0002352,4]
[391090257,1760320249467,-188.08181534,0.0002352,4]
[391090258,1760320249476,-150.0,0.00023528,4]
[391090259,1760320249485,-150.0,0.00023529,4]
[391090260,1760320249494,-250.13474705,0.0002353,2]
[391090261,1760320249503,-150.0,0.00023537,4]
[391090262,1760320249513,-150.0,0.00023544,4]
[391090263,1760320249524,-185.87887338,0.00023545,4]
[391090264,1760320249535,-253.69222494,0.00023545,4]
[391090265,1760320249544,-317.45564591,0.00023545,4]
[391090266,1760320249553,-172.96055888,0.00023545,4]
[391090267,1760320249564,-161.2482664,0.00023545,4]
[391090268,1760320249575,-188.08181534,0.00023545,4]
[391090269,1760320249585,-150.0,0.00023557,4]
[391090270,1760320249594,-150.0,0.00023558,4]
[391090271,1760320249603,-150.0,0.0002356,4]
[391090272,1760320249613,-185.87887338,0.0002357,4]
[391090273,1760320249622,-253.69222494,0.0002357,4]
[391090274,1760320249632,-317.45564591,0.0002357,4]
[391090275,1760320249642,-172.96055888,0.0002357,4]
[391090276,1760320249652,-161.2482664,0.0002357,4]
[391090277,1760320249660,-188.08181534,0.0002357,4]
[391090278,1760320249669,-150.0,0.00023574,4]
[391090279,1760320249679,-150.0,0.00023581,4]
[391090280,1760320249687,-150.0,0.00023588,4]
[391090281,1760320249697,-185.87887338,0.00023595,4]
[391090282,1760320249707,-253.69222494,0.00023595,4]
[391090283,1760320249716,-317.45564591,0.00023595,4]
[391090284,1760320249725,-172.96055888,0.00023595,4]
[391090285,1760320249734,-161.2482664,0.00023595,4]
[391090286,1760320249743,-188.08181534,0.00023595,4]
[391090287,1760320249752,-150.0,0.00023601,4]
[391090288,1760320249761,-150.0,0.00023603,4]
[391090289,1760320249771,-150.0,0.00023607,4]
[391090290,1760320249780,-150.0,0.00023608,4]
[391090291,1760320249792,-150.0,0.00023618,4]
[391090292,1760320249802,-185.87887338,0.0002362,4]
[391090293,1760320249812,-253.69222494,0.0002362,4]
[391090294,1760320249821,-317.45564591,0.0002362,4]
[391090295,1760320249831,-172.96055888,0.0002362,4]
[391090296,1760320249839,-161.2482664,0.0002362,4]
[391090297,1760320249849,-188.08181534,0.0002362,4]
[391090298,1760320249858,-150.0,0.00023633,4]
[391090299,1760320249868,-150.0,0.00023633,4]
[391090300,1760320249877,-150.0,0.00023633,4]
[391090301,1760320249886,-150.0,0.00023633,4]
[391090302,1760320249895,-150.0,0.00023633,4]
[391090303,1760320249905,-185.87887338,0.00023645,4]
[391090304,1760320249920,-253.69222494,0.00023645,4]
[391090305,1760320249931,-317.45564591,0.00023645,4]
[391090306,1760320249941,-172.96055888,0.00023645,4]
[391090307,1760320249952,-161.2482664,0.00023645,4]
[391090308,1760320249962,-188.08181534,0.00023645,4]
[391090309,1760320249973,-150.0,0.00023648,4]
[391090310,1760320249982,-150.0,0.00023657,4]
[391090311,1760320249993,-150.0,0.00023658,4]
[391090312,1760320250003,-150.0,0.00023662,4]
[391090313,1760320250019,-150.0,0.00023665,4]
[391090314,1760320250029,-186.63087553,0.00023665,2]
[391090315,1760320250041,-474.32,0.00023666,2]
[391090316,1760320250051,-897.8,0.00023666,2]
[391090317,1760320250060,-185.87887338,0.00023671,4]
[391090318,1760320250070,-253.69222494,0.00023671,4]
[391090319,1760320250083,-317.45564591,0.00023671,4]
[391090320,1760320250092,-172.96055888,0.00023671,4]
[391090321,1760320250101,-161.2482664,0.00023671,4]
[391090322,1760320250110,-188.08181534,0.00023671,4]
[391090323,1760320250121,-150.0,0.00023678,4]
[391090324,1760320250131,-150.0,0.00023685,4]
[391090325,1760320250140,-150.0,0.00023692,4]
[391090326,1760320250149,-185.87887338,0.00023696,4]
[391090327,1760320250158,-253.69222494,0.00023696,4]
[391090328,1760320250167,-317.45564591,0.00023696,4]
[391090329,1760320250177,-172.96055888,0.00023696,4]
[391090330,1760320250186,-161.2482664,0.00023696,4]
[391090331,1760320250195,-188.08181534,0.00023696,4]
[391090332,1760320250205,-150.0,0.00023706,4]
[391090333,1760320250215,-150.0,0.00023708,4]
[391090334,1760320250225,-150.0,0.00023709,4]
[391090335,1760320250244,-185.87887338,0.00023721,4]
[391090336,1760320250254,-253.69222494,0.00023721,4]
[391090337,1760320250263,-317.45564591,0.00023721,4]
[391090338,1760320250275,-172.96055888,0.00023721,4]
[391090339,1760320250286,-161.2482664,0.00023721,4]
[391090340,1760320250296,-188.08181534,0.00023721,4]
[391090341,1760320250305,-150.0,0.00023722,4]
[391090342,1760320250315,-150.0,0.00023729,4]
[391090343,1760320250327,-150.0,0.00023737,4]
[391090344,1760320250338,-150.0,0.00023738,4]
[391090345,1760320250348,-150.36659716,0.0002374,2]
[391090346,1760320250360,-185.87887338,0.00023746,4]
[391090347,1760320250369,-253.69222494,0.00023746,4]
[391090348,1760320250382,-317.45564591,0.00023746,4]
[391090349,1760320250391,-172.96055888,0.00023746,4]
[391090350,1760320250402,-161.2482664,0.00023746,4]
[391090351,1760320250412,-188.08181534,0.00023746,4]
[391090352,1760320250422,-150.0,0.00023746,4]
[391090353,1760320250432,-150.0,0.00023751,4]
[391090354,1760320250441,-150.0,0.00023755,4]
[391090355,1760320250451,-150.0,0.0002376,4]
[391090356,1760320250460,-150.0,0.00023768,4]
[391090357,1760320250470,-185.87887338,0.00023771,4]
[391090358,1760320250480,-253.69222494,0.00023771,4]
[391090359,1760320250489,-317.45564591,0.00023771,4]
[391090360,1760320250499,-172.96055888,0.00023771,4]
[391090361,1760320250508,-161.2482664,0.00023771,4]
[391090362,1760320250517,-188.08181534,0.00023771,4]
[391090363,1760320250527,-150.0,0.00023781,4]
[391090364,1760320250538,-150.0,0.00023788,4]
[391090365,1760320250547,-150.0,0.00023788,4]
[391090366,1760320250557,-150.0,0.00023792,4]
[391090367,1760320250566,-185.87887338,0.00023796,4]
[391090368,1760320250575,-253.69222494,0.00023796,4]
[391090369,1760320250585,-317.45564591,0.00023796,4]
[391090370,1760320250595,-172.96055888,0.00023796,4]
[391090371,1760320250605,-161.2482664,0.00023796,4]
[391090372,1760320250616,-188.08181534,0.00023796,4]
[391090373,1760320250626,-150.0,0.00023798,4]
[391090374,1760320250636,-150.0,0.00023804,4]
[391090375,1760320250646,-150.0,0.00023811,4]
[391090376,1760320250655,-150.0,0.00023811,4]
[391090377,1760320250665,-185.87887338,0.00023821,4]
[391090378,1760320250675,-253.69222494,0.00023821,4]
[391090379,1760320250686,-317.45564591,0.00023821,4]
[391090380,1760320250696,-172.96055888,0.00023821,4]
[391090381,1760320250705,-161.2482664,0.00023821,4]
[391090382,1760320250715,-188.08181534,0.00023821,4]
[391090383,1760320250725,-150.0,0.00023828,4]
[391090384,1760320250734,-766.7,0.00023836,2]
[391090385,1760320250744,-150.0,0.0002384,4]
[391090386,1760320250753,-150.0,0.0002384,4]
[391090387,1760320250763,-185.87887338,0.00023846,4]
[391090388,1760320250772,-253.69222494,0.00023846,4]
[391090389,1760320250784,-317.45564591,0.00023846,4]
[391090390,1760320250794,-172.96055888,0.00023846,4]
[391090391,1760320250803,-161.2482664,0.00023846,4]
[391090392,1760320250813,-188.08181534,0.00023846,4]
[391090393,1760320250823,-150.0,0.00023852,4]
[391090394,1760320250832,-150.0,0.00023856,4]
[391090395,1760320250842,-150.0,0.00023858,4]
[391090396,1760320250851,-150.0,0.00023861,4]
[391090397,1760320250865,-150.0,0.0002387,4]
[391090398,1760320250875,-185.87887338,0.00023872,4]
[391090399,1760320250887,-253.69222494,0.00023872,4]
[391090400,1760320250896,-317.45564591,0.00023872,4]
[391090401,1760320250907,-172.96055888,0.00023872,4]
[391090402,1760320250917,-161.2482664,0.00023872,4]
[391090403,1760320250926,-188.08181534,0.00023872,4]
[391090404,1760320250936,-150.0,0.00023882,4]
[391090405,1760320250947,-150.0,0.00023882,4]
[391090406,1760320250961,-150.0,0.00023888,4]
[391090407,1760320250972,-150.0,0.00023892,4]
[391090408,1760320250983,-185.87887338,0.00023897,4]
[391090409,1760320250992,-253.69222494,0.00023897,4]
[391090410,1760320251006,-317.45564591,0.00023897,4]
[391090411,1760320251016,-172.96055888,0.00023897,4]
[391090412,1760320251026,-161.2482664,0.00023897,4]
[391090413,1760320251036,-188.08181534,0.00023897,4]
[391090414,1760320251047,-150.0,0.00023899,4]
[391090415,1760320251057,-150.0,0.00023901,4]
[391090416,1760320251066,-150.0,0.00023912,4]
[391090417,1760320251077,-150.0,0.00023918,4]
[391090418,1760320251087,-150.0,0.0002392,4]
[391090419,1760320251096,-185.87887338,0.00023922,4]
[391090420,1760320251106,-253.69222494,0.00023922,4]
[391090421,1760320251115,-317.45564591,0.00023922,4]
[391090422,1760320251124,-172.96055888,0.00023922,4]
[391090423,1760320251134,-161.2482664,0.00023922,4]
[391090424,1760320251143,-188.08181534,0.00023922,4]
[391090425,1760320251152,-150.0,0.00023929,4]
[391090426,1760320251162,-150.0,0.00023944,4]
[391090427,1760320251171,-150.0,0.00023944,4]
[391090428,1760320251180,-185.87887338,0.00023947,4]
[391090429,1760320251189,-253.69222494,0.00023947,4]
[391090430,1760320251201,-317.45564591,0.00023947,4]
[391090431,1760320251211,-172.96055888,0.00023947,4]
[391090432,1760320251220,-161.2482664,0.00023947,4]
[391090433,1760320251231,-188.08181534,0.00023947,4]
[391090434,1760320251242,-150.0,0.00023948,4]
[391090435,1760320251253,-150.0,0.0002395,4]
[391090436,1760320251262,-150.0,0.00023959,4]
[391090437,1760320251274,-150.0,0.00023963,4]
[391090438,1760320251284,-185.87887338,0.00023972,4]
[391090439,1760320251293,-253.69222494,0.00023972,4]
[391090440,1760320251302,-317.45564591,0.00023972,4]
[391090441,1760320251312,-172.96055888,0.00023972,4]
[391090442,1760320251322,-161.2482664,0.00023972,4]
[391090443,1760320251332,-188.08181534,0.00023972,4]
[391090444,1760320251343,-150.0,0.00023972,4]
[391090445,1760320251354,-150.0,0.00023978,4]
[391090446,1760320251365,-166.26569034,0.00023981,2]
[391090447,1760320251375,-150.0,0.00023984,4]
[391090448,1760320251386,-150.0,0.00023988,4]
[391090449,1760320251395,-150.0,0.00023996,4]
[391090450,1760320251406,-185.87887338,0.00023997,4]
[391090451,1760320251416,-253.69222494,0.00023997,4]
[391090452,1760320251427,-317.45564591,0.00023997,4]
[391090453,1760320251437,-172.96055888,0.00023997,4]
[391090454,1760320251447,-161.2482664,0.00023997,4]
[391090455,1760320251458,-188.08181534,0.00023997,4]
[391090456,1760320251469,-150.0,0.00023999,4]
[391090457,1760320251479,-150.0,0.00024008,4]
[391090458,1760320251490,-150.0,0.00024014,4]
[391090459,1760320251500,-150.0,0.00024018,4]
[391090460,1760320251509,-185.87887338,0.00024022,4]
[391090461,1760320251518,-253.69222494,0.00024022,4]
[391090462,1760320251527,-317.45564591,0.00024022,4]
[391090463,1760320251537,-172.96055888,0.00024022,4]
[391090464,1760320251547,-161.2482664,0.00024022,4]
[391090465,1760320251557,-188.08181534,0.00024022,4]
[391090466,1760320251566,-150.0,0.00024037,4]
[391090467,1760320251576,-185.87887338,0.00024047,4]
[391090468,1760320251591,-253.69222494,0.00024047,4]
[391090469,1760320251602,-317.45564591,0.00024047,4]
[391090470,1760320251613,-150.0,0.00024047,4]
[391090471,1760320251624,-172.96055888,0.00024047,4]
[391090472,1760320251635,-150.0,0.00024047,4]
[391090473,1760320251645,-161.2482664,0.00024047,4]
[391090474,1760320251655,-150.0,0.00024047,4]
[391090475,1760320251665,-150.0,0.00024047,4]
[391090476,1760320251676,-150.0,0.00024047,4]
[391090477,1760320251686,-150.0,0.00024047,4]
[391090478,1760320251695,-188.08181534,0.00024047,4]
[391090479,1760320251705,-150.0,0.00024064,4]
[391090480,1760320251715,-150.0,0.00024067,4]
[391090481,1760320251725,-185.87887338,0.00024073,4]
[391090482,1760320251734,-253.69222494,0.00024073,4]
[391090483,1760320251745,-317.45564591,0.00024073,4]
[391090484,1760320251756,-172.96055888,0.00024073,4]
[391090485,1760320251767,-161.2482664,0.00024073,4]
[391090486,1760320251777,-188.08181534,0.00024073,4]
[391090487,1760320251789,-150.0,0.00024077,4]
[391090488,1760320251798,-2250.058,0.00024088,5]
[391090489,1760320251808,-215.989,0.00024088,5]
[391090490,1760320251817,-221.729681,0.00024088,7]
[391090491,1760320251826,-221.729681,0.00024088,7]
[391090492,1760320251836,-221.729681,0.00024088,7]
[391090493,1760320251845,-221.729681,0.00024088,7]
[391090494,1760320251856,-150.0,0.00024096,4]
[391090495,1760320251866,-150.0,0.00024097,4]
[391090496,1760320251875,-185.87887338,0.00024098,4]
[391090497,1760320251885,-253.69222494,0.00024098,4]
[391090498,1760320251895,-317.45564591,0.00024098,4]
[391090499,1760320251905,-172.96055888,0.00024098,4]
[391090500,1760320251914,-161.2482664,0.00024098,4]
[391090501,1760320251924,-188.08181534,0.00024098,4]
[391090502,1760320251934,-150.0,0.00024099,4]
[391090503,1760320251944,-150.0,0.00024099,4]
[391090504,1760320251954,-150.0,0.00024107,4]
[391090505,1760320251963,-150.0,0.00024111,4]
[391090506,1760320251973,-150.0,0.00024115,4]
[391090507,1760320251983,-185.87887338,0.00024123,4]
[391090508,1760320251994,-253.69222494,0.00024123,4]
[391090509,1760320252005,-317.45564591,0.00024123,4]
[391090510,1760320252019,-172.96055888,0.00024123,4]
[391090511,1760320252029,-161.2482664,0.00024123,4]
[391090512,1760320252040,-188.08181534,0.00024123,4]
[391090513,1760320252050,-150.0,0.00024127,4]
[391090514,1760320252061,-150.0,0.0002413,4]
[391090515,1760320252070,-150.0,0.00024136,4]
[391090516,1760320252081,-150.0,0.00024145,4]
[391090517,1760320252092,-185.87887338,0.00024148,4]
[391090518,1760320252102,-253.69222494,0.00024148,4]
[391090519,1760320252113,-317.45564591,0.00024148,4]
[391090520,1760320252123,-172.96055888,0.00024148,4]
[391090521,1760320252132,-161.2482664,0.00024148,4]
[391090522,1760320252142,-188.08181534,0.00024148,4]
[391090523,1760320252152,-150.0,0.00024151,4]
[391090524,1760320252162,-150.0,0.00024157,4]
[391090525,1760320252173,-150.0,0.00024166,4]
[391090526,1760320252184,-150.0,0.00024166,4]
[391090527,1760320252195,-185.87887338,0.00024173,4]
[391090528,1760320252205,-253.69222494,0.00024173,4]
[391090529,1760320252216,-317.45564591,0.00024173,4]
[391090530,1760320252226,-172.96055888,0.00024173,4]
[391090531,1760320252237,-161.2482664,0.00024173,4]
[391090532,1760320252248,-188.08181534,0.00024173,4]
[391090533,1760320252259,-150.0,0.00024175,4]
[391090534,1760320252269,-150.0,0.00024187,4]
[391090535,1760320252279,-150.0,0.00024194,4]
[391090536,1760320252290,-150.0,0.00024196,4]
[391090537,1760320252299,-185.87887338,0.00024198,4]
[391090538,1760320252309,-253.69222494,0.00024198,4]
[391090539,1760320252318,-317.45564591,0.00024198,4]
[391090540,1760320252328,-172.96055888,0.00024198,4]
[391090541,1760320252339,-161.2482664,0.00024198,4]
[391090542,1760320252350,-150.0,0.00024198,4]
[391090543,1760320252359,-188.08181534,0.00024198,4]
[391090544,1760320252368,-150.0,0.00024203,4]
[391090545,1760320252378,-150.0,0.00024217,4]
[391090546,1760320252387,-150.0,0.00024217,4]
[391090547,1760320252396,-185.87887338,0.00024223,4]
[391090548,1760320252407,-253.69222494,0.00024223,4]
[391090549,1760320252419,-317.45564591,0.00024223,4]
[391090550,1760320252431,-172.96055888,0.00024223,4]
[391090551,1760320252440,-161.2482664,0.00024223,4]
[391090552,1760320252450,-188.08181534,0.00024223,4]
[391090553,1760320252462,-150.0,0.00024225,4]
[391090554,1760320252473,-150.0,0.00024239,4]
[391090555,1760320252485,-150.0,0.00024243,4]
[391090556,1760320252495,-150.0,0.00024247,4]
[391090557,1760320252507,-185.87887338,0.00024249,4]
[391090558,1760320252519,-253.69222494,0.00024249,4]
[391090559,1760320252529,-317.45564591,0.00024249,4]
[391090560,1760320252540,-172.96055888,0.00024249,4]
[391090561,1760320252549,-161.2482664,0.00024249,4]
[391090562,1760320252559,-188.08181534,0.00024249,4]
[391090563,1760320252568,-150.0,0.00024255,4]
[391090564,1760320252578,-150.0,0.00024255,4]
[391090565,1760320252587,-150.0,0.00024255,4]
[391090566,1760320252596,-150.0,0.00024267,4]
[391090567,1760320252606,-185.87887338,0.00024274,4]
[391090568,1760320252615,-253.69222494,0.00024274,4]
[391090569,1760320252625,-317.45564591,0.00024274,4]
[391090570,1760320252634,-172.96055888,0.00024274,4]
[391090571,1760320252644,-161.2482664,0.00024274,4]
[391090572,1760320252653,-188.08181534,0.00024274,4]
[391090573,1760320252663,-150.0,0.00024277,4]
[391090574,1760320252672,-150.0,0.00024284,4]
[391090575,1760320252683,-150.0,0.00024291,4]
[391090576,1760320252693,-185.87887338,0.00024299,4]
[391090577,1760320252704,-253.69222494,0.00024299,4]
[391090578,1760320252714,-317.45564591,0.00024299,4]
[391090579,1760320252724,-172.96055888,0.00024299,4]
[391090580,1760320252734,-161.2482664,0.00024299,4]
[391090581,1760320252744,-188.08181534,0.00024299,4]
[391090582,1760320252754,-150.0,0.00024303,4]
[391090583,1760320252763,-150.0,0.00024307,4]
[391090584,1760320252773,-150.0,0.00024307,4]
[391090585,1760320252783,-150.0,0.00024314,4]
[391090586,1760320252794,-150.0,0.00024318,4]
[391090587,1760320252804,-185.87887338,0.00024324,4]
[391090588,1760320252814,-253.69222494,0.00024324,4]
[391090589,1760320252824,-317.45564591,0.00024324,4]
[391090590,1760320252834,-172.96055888,0.00024324,4]
[391090591,1760320252846,-161.2482664,0.00024324,4]
[391090592,1760320252855,-188.08181534,0.00024324,4]
[391090593,1760320252865,-150.0,0.00024337,4]
[391090594,1760320252875,-150.0,0.0002434,4]
[391090595,1760320252885,-150.0,0.00024344,4]
[391090596,1760320252895,-185.87887338,0.00024349,4]
[391090597,1760320252905,-253.69222494,0.00024349,4]
[391090598,1760320252914,-317.45564591,0.00024349,4]
[391090599,1760320252924,-172.96055888,0.00024349,4]
[391090600,1760320252933,-161.2482664,0.00024349,4]
[391090601,1760320252943,-188.08181534,0.00024349,4]
[391090602,1760320252953,-150.0,0.00024358,4]
[391090603,1760320252963,-150.0,0.00024366,4]
[391090604,1760320252975,-150.0,0.00024367,4]
[391090605,1760320252984,-150.0,0.00024369,4]
[391090606,1760320252994,-150.0,0.00024373,4]
[391090607,1760320253011,-185.87887338,0.00024374,4]
[391090608,1760320253020,-253.69222494,0.00024374,4]
[391090609,1760320253030,-317.45564591,0.00024374,4]
[391090610,1760320253041,-172.96055888,0.00024374,4]
[391090611,1760320253059,-161.2482664,0.00024374,4]
[391090612,1760320253070,-188.08181534,0.00024374,4]
[391090613,1760320253080,-150.0,0.00024379,4]
[391090614,1760320253090,-150.0,0.00024379,4]
[391090615,1760320253100,-150.0,0.00024389,4]
[391090616,1760320253110,-150.0,0.00024397,4]
[391090617,1760320253120,-532.0,0.00024397,2]
[391090618,1760320253130,-185.87887338,0.00024399,4]
[391090619,1760320253139,-253.69222494,0.00024399,4]
[391090620,1760320253149,-317.45564591,0.00024399,4]
[391090621,1760320253159,-172.96055888,0.00024399,4]
[391090622,1760320253168,-161.2482664,0.00024399,4]
[391090623,1760320253178,-188.08181534,0.00024399,4]
[391090624,1760320253188,-150.0,0.00024403,4]
[391090625,1760320253202,-150.0,0.0002441,4]
[391090626,1760320253211,-150.0,0.0002441,4]
[391090627,1760320253221,-150.0,0.0002442,4]
[391090628,1760320253231,-185.87887338,0.00024424,4]
[391090629,1760320253240,-253.69222494,0.00024424,4]
[391090630,1760320253250,-317.45564591,0.00024424,4]
[391090631,1760320253260,-172.96055888,0.00024424,4]
[391090632,1760320253270,-161.2482664,0.00024424,4]
[391090633,1760320253280,-150.0,0.00024424,4]
[391090634,1760320253290,-188.08181534,0.00024424,4]
[391090635,1760320253300,-150.0,0.00024427,4]
[391090636,1760320253310,-150.0,0.0002443,4]
[391090637,1760320253320,-150.0,0.00024432,4]
[391090638,1760320253329,-688.983299,0.00024435,2]
[391090639,1760320253339,-150.0,0.00024438,4]
[391090640,1760320253350,-185.87887338,0.0002445,4]
[391090641,1760320253360,-253.69222494,0.0002445,4]
[391090642,1760320253369,-317.45564591,0.0002445,4]
[391090643,1760320253379,-172.96055888,0.0002445,4]
[391090644,1760320253388,-161.2482664,0.0002445,4]
[391090645,1760320253397,-188.08181534,0.0002445,4]
[391090646,1760320253407,-150.0,0.00024457,4]
[391090647,1760320253417,-150.0,0.00024462,4]
[391090648,1760320253427,-150.0,0.00024462,4]
[391090649,1760320253437,-150.0,0.00024462,4]
[391090650,1760320253446,-150.0,0.00024471,4]
[391090651,1760320253456,-185.87887338,0.00024475,4]
[391090652,1760320253466,-253.69222494,0.00024475,4]
[391090653,1760320253476,-317.45564591,0.00024475,4]
[391090654,1760320253486,-172.96055888,0.00024475,4]
[391090655,1760320253495,-161.2482664,0.00024475,4]
[391090656,1760320253505,-188.08181534,0.00024475,4]
[391090657,1760320253515,-177.19896035,0.00024479,19]
[391090658,1760320253525,-9435.92325538,0.00024486,2]
[391090659,1760320253537,-150.0,0.00024486,4]
[391090660,1760320253546,-150.0,0.00024487,4]
[391090661,1760320253556,-150.0,0.00024492,4]
[391090662,1760320253566,-150.0,0.00024494,4]
[391090663,1760320253580,-185.87887338,0.000245,4]
[391090664,1760320253589,-253.69222494,0.000245,4]
[391090665,1760320253599,-317.45564591,0.000245,4]
[391090666,1760320253609,-172.96055888,0.000245,4]
[391090667,1760320253619,-161.2482664,0.000245,4]
[391090668,1760320253629,-188.08181534,0.000245,4]
[391090669,1760320253639,-1259.58078465,0.000245,4]
[391090670,1760320253649,-150.0,0.00024514,4]
[391090671,1760320253660,-150.0,0.00024517,4]
[391090672,1760320253671,-150.0,0.00024521,4]
[391090673,1760320253681,-150.0,0.00024521,4]
[391090674,1760320253691,-185.87887338,0.00024525,4]
[391090675,1760320253701,-253.69222494,0.00024525,4]
[391090676,1760320253711,-317.45564591,0.00024525,4]
[391090677,1760320253721,-172.96055888,0.00024525,4]
[391090678,1760320253732,-161.2482664,0.00024525,4]
[391090679,1760320253741,-188.08181534,0.00024525,4]
[391090680,1760320253752,-150.0,0.00024535,4]
[391090681,1760320253762,-150.0,0.00024547,4]
[391090682,1760320253772,-185.87887338,0.0002455,4]
[391090683,1760320253782,-253.69222494,0.0002455,4]
[391090684,1760320253794,-317.45564591,0.0002455,4]
[391090685,1760320253804,-172.96055888,0.0002455,4]
[391090686,1760320253814,-161.2482664,0.0002455,4]
[391090687,1760320253825,-188.08181534,0.0002455,4]
[391090688,1760320253835,-150.0,0.00024551,4]
[391090689,1760320253846,-150.0,0.00024558,4]
[391090690,1760320253856,-150.0,0.00024566,4]
[391090691,1760320254125,-150.0,0.00024566,4]
[391090692,1760320254135,-150.0,0.00024572,4]
[391090693,1760320254145,-185.87887338,0.00024575,4]
[391090694,1760320254155,-253.69222494,0.00024575,4]
[391090695,1760320254164,-317.45564591,0.00024575,4]
[391090696,1760320254174,-172.96055888,0.00024575,4]
[391090697,1760320254183,-161.2482664,0.00024575,4]
[391090698,1760320254193,-188.08181534,0.00024575,4]
[391090699,1760320254203,-150.0,0.00024577,4]
[391090700,1760320254213,-150.0,0.00024581,4]
[391090701,1760320254223,-150.0,0.00024584,4]
[391090702,1760320254233,-16664.89396778,0.00024587,2]
[391090703,1760320254244,-169.28683705,0.00024587,2]